[Event "MČR v rapid šachu družstev 2019"]
[Site "Teplice, Czech Republic"]
[Date "2019.09.15"]
[Round "5.16"]
[White "Benes, Petr"]
[Black "Krejci, Jan"]
[Result "0-1"]
[TimeControl "15 min. + 5s"]
[WhiteElo "2147"]
[BlackElo "2496"]

1. c4 {[%clk 00:15:08]} {[%emt 00:00:02]} c5 {[%clk 00:15:08]} {[%emt
00:00:02]} 2. g3 {[%clk 00:15:02]} {[%emt 00:00:11]} g6 {[%clk 00:15:11]}
{[%emt 00:00:02]} 3. Bg2 {[%clk 00:15:02]} {[%emt 00:00:05]} Bg7 {[%clk
00:15:14]} {[%emt 00:00:02]} 4. Nc3 {[%clk 00:14:57]} {[%emt 00:00:10]} Nc6
{[%clk 00:15:06]} {[%emt 00:00:14]} 5. a3 {[%clk 00:14:48]} {[%emt 00:00:14]}
e5 {[%clk 00:14:39]} {[%emt 00:00:31]} 6. e3 {[%clk 00:14:42]} {[%emt
00:00:11]} d6 {[%clk 00:14:39]} {[%emt 00:00:06]} 7. Nge2 {[%clk 00:14:28]}
{[%emt 00:00:18]} Nge7 {[%clk 00:14:19]} {[%emt 00:00:24]} 8. O-O {[%clk
00:14:05]} {[%emt 00:00:29]} O-O {[%clk 00:14:21]} {[%emt 00:00:03]} 9. Rb1
{[%clk 00:13:57]} {[%emt 00:00:12]} Bf5 {[%clk 00:13:31]} {[%emt 00:00:54]} 10.
d3 {[%clk 00:13:42]} {[%emt 00:00:20]} Qd7 {[%clk 00:12:53]} {[%emt 00:00:43]}
11. Re1 {[%clk 00:13:25]} {[%emt 00:00:22]} Bh3 {[%clk 00:12:55]} {[%emt
00:00:03]} 12. Bh1 {[%clk 00:13:26]} {[%emt 00:00:05]} a5 {[%clk 00:12:33]}
{[%emt 00:00:27]} 13. Bd2 {[%clk 00:12:18]} {[%emt 00:01:13]} h5 {[%clk
00:11:49]} {[%emt 00:00:49]} 14. Ne4 {[%clk 00:11:14]} {[%emt 00:01:08]} Bg4
{[%clk 00:10:04]} {[%emt 00:01:50]} 15. f3 {[%clk 00:11:01]} {[%emt 00:00:19]}
Bf5 {[%clk 00:10:03]} {[%emt 00:00:05]} 16. N2c3 {[%clk 00:11:00]} {[%emt
00:00:06]} b6 {[%clk 00:09:55]} {[%emt 00:00:13]} 17. Nb5 {[%clk 00:10:46]}
{[%emt 00:00:19]} Nc8 {[%clk 00:09:39]} {[%emt 00:00:20]} 18. Nf2 {[%clk
00:09:11]} {[%emt 00:01:41]} Rb8 {[%clk 00:09:31]} {[%emt 00:00:12]} 19. Bc3
{[%clk 00:09:05]} {[%emt 00:00:12]} N8e7 {[%clk 00:09:20]} {[%emt 00:00:17]} 20.
Qd2 {[%clk 00:08:34]} {[%emt 00:00:36]} d5 {[%clk 00:08:55]} {[%emt 00:00:30]}
21. cxd5 {[%clk 00:07:35]} {[%emt 00:01:04]} Nxd5 {[%clk 00:08:58]} {[%emt
00:00:02]} 22. Ne4 {[%clk 00:06:30]} {[%emt 00:01:10]} Nce7 {[%clk 00:08:04]}
{[%emt 00:00:59]} 23. Nbd6 {[%clk 00:06:19]} {[%emt 00:00:16]} Be6 {[%clk
00:07:53]} {[%emt 00:00:16]} 24. Nc4 {[%clk 00:06:06]} {[%emt 00:00:19]} Nxc3
{[%clk 00:07:47]} {[%emt 00:00:11]} 25. Qxc3 {[%clk 00:05:14]} {[%emt
00:00:57]} f5 {[%clk 00:07:01]} {[%emt 00:00:51]} 26. Nf2 {[%clk 00:05:12]}
{[%emt 00:00:07]} e4 {[%clk 00:06:55]} {[%emt 00:00:10]} 27. Qc2 {[%clk
00:05:16]} {[%emt 00:00:01]} exd3 {[%clk 00:06:25]} {[%emt 00:00:36]} 28. Nxd3
{[%clk 00:05:09]} {[%emt 00:00:12]} Nc6 {[%clk 00:06:06]} {[%emt 00:00:24]} 29.
Rbd1 {[%clk 00:04:56]} {[%emt 00:00:19]} Qc7 {[%clk 00:05:51]} {[%emt
00:00:19]} 30. Nf4 {[%clk 00:04:49]} {[%emt 00:00:12]} Bf7 {[%clk 00:05:37]}
{[%emt 00:00:19]} 31. Nd6 {[%clk 00:04:47]} {[%emt 00:00:06]} Kh7 {[%clk
00:05:35]} {[%emt 00:00:08]} 32. Qa4 {[%clk 00:03:41]} {[%emt 00:01:11]} Bxb2
{[%clk 00:05:01]} {[%emt 00:00:40]} 33. Nxf7 {[%clk 00:03:41]} {[%emt
00:00:06]} Rxf7 {[%clk 00:05:03]} {[%emt 00:00:02]} 34. Ne6 {[%clk 00:03:39]}
{[%emt 00:00:07]} b5 {[%clk 00:03:59]} {[%emt 00:01:09]} 35. Qh4 {[%clk
00:02:02]} {[%emt 00:01:43]} Qe7 {[%clk 00:03:06]} {[%emt 00:00:57]} 36. Ng5+
{[%clk 00:02:04]} {[%emt 00:00:03]} Kg8 {[%clk 00:03:01]} {[%emt 00:00:10]} 37.
Nxf7 {[%clk 00:02:07]} {[%emt 00:00:02]} Qxf7 {[%clk 00:02:35]} {[%emt
00:00:31]} 38. Rd6 {[%clk 00:02:01]} {[%emt 00:00:11]} Ne5 {[%clk 00:02:27]}
{[%emt 00:00:13]} 39. Red1 {[%clk 00:01:57]} {[%emt 00:00:10]} c4 {[%clk
00:02:15]} {[%emt 00:00:16]} 40. Qg5 {[%clk 00:01:14]} {[%emt 00:00:48]} Kh7
{[%clk 00:02:17]} {[%emt 00:00:03]} 41. Rf6 {[%clk 00:00:48]} {[%emt 00:00:32]}
Nxf3+ {[%clk 00:02:10]} {[%emt 00:00:12]} 42. Bxf3 {[%clk 00:00:52]} {[%emt
00:00:01]} Bxf6 {[%clk 00:02:13]} {[%emt 00:00:02]} 43. Qf4 {[%clk 00:00:51]}
{[%emt 00:00:05]} Rc8 {[%clk 00:01:56]} {[%emt 00:00:21]} 44. Bd5 {[%clk
00:00:53]} {[%emt 00:00:05]} Qe7 {[%clk 00:01:58]} {[%emt 00:00:03]} 45. Rc1
{[%clk 00:00:36]} {[%emt 00:00:21]} Qxa3 {[%clk 00:01:55]} {[%emt 00:00:08]} 46.
e4 {[%clk 00:00:35]} {[%emt 00:00:06]} Be5 {[%clk 00:01:11]} {[%emt 00:00:49]}
47. Qf1 {[%clk 00:00:19]} {[%emt 00:00:22]} c3 {[%clk 00:00:49]} {[%emt
00:00:27]} 48. Ra1 {[%clk 00:00:17]} {[%emt 00:00:07]} Qc5+ {[%clk 00:00:53]}
{[%emt 00:00:01]} 49. Kg2 {[%clk 00:00:17]} {[%emt 00:00:03]} c2 {[%clk
00:00:57]} {[%emt 00:00:03]} 50. exf5 {[%clk 00:00:18]} {[%emt 00:00:04]} Qxd5+
{[%clk 00:00:59]} {[%emt 00:00:02]} 51. Kh3 {[%clk 00:00:22]} {[%emt 00:00:01]}
Qd7 {[%clk 00:00:56]} {[%emt 00:00:07]} 52. Kg2 {[%emt 00:00:30]} 0-1

[Event "MČR v rapid šachu družstev 2019"]
[Site "Teplice, Czech Republic"]
[Date "2019.09.15"]
[Round "5.17"]
[White "Dvorak, Jan"]
[Black "Slampa, Jan"]
[Result "0-1"]
[TimeControl "15 min. + 5s"]
[WhiteElo "2211"]
[BlackElo "2166"]

1. c4 {[%clk 00:15:09]} {[%emt 00:00:01]} Nf6 {[%clk 00:15:07]} {[%emt
00:00:03]} 2. Nc3 {[%clk 00:15:12]} {[%emt 00:00:02]} g6 {[%clk 00:15:05]}
{[%emt 00:00:07]} 3. g3 {[%clk 00:15:11]} {[%emt 00:00:06]} Bg7 {[%clk
00:15:08]} {[%emt 00:00:01]} 4. Bg2 {[%clk 00:15:15]} {[%emt 00:00:02]} O-O
{[%clk 00:15:04]} {[%emt 00:00:08]} 5. Nf3 {[%clk 00:15:18]} {[%emt 00:00:03]}
d6 {[%clk 00:14:59]} {[%emt 00:00:10]} 6. O-O {[%clk 00:15:19]} {[%emt
00:00:03]} c5 {[%clk 00:13:28]} {[%emt 00:01:36]} 7. d4 {[%clk 00:15:16]}
{[%emt 00:00:08]} Nc6 {[%clk 00:12:56]} {[%emt 00:00:37]} 8. d5 {[%clk
00:13:32]} {[%emt 00:01:49]} Na5 {[%clk 00:12:48]} {[%emt 00:00:13]} 9. Qd3
{[%clk 00:13:17]} {[%emt 00:00:20]} a6 {[%clk 00:12:37]} {[%emt 00:00:17]} 10.
Nd2 {[%clk 00:12:54]} {[%emt 00:00:28]} Rb8 {[%clk 00:12:16]} {[%emt 00:00:25]}
11. Rb1 {[%clk 00:11:37]} {[%emt 00:01:22]} Nd7 {[%clk 00:10:52]} {[%emt
00:01:29]} 12. f4 {[%clk 00:11:04]} {[%emt 00:00:38]} b5 {[%clk 00:10:38]}
{[%emt 00:00:20]} 13. cxb5 {[%clk 00:10:09]} {[%emt 00:01:00]} axb5 {[%clk
00:10:40]} {[%emt 00:00:02]} 14. b4 {[%clk 00:09:59]} {[%emt 00:00:15]} cxb4
{[%clk 00:09:55]} {[%emt 00:00:50]} 15. Rxb4 {[%clk 00:09:48]} {[%emt
00:00:17]} Qb6+ {[%clk 00:10:00]} 16. e3 {[%clk 00:09:14]} {[%emt 00:00:39]}
Qc5 {[%clk 00:10:03]} {[%emt 00:00:02]} 17. Rxb5 {[%clk 00:09:10]} {[%emt
00:00:09]} Qxc3 {[%clk 00:10:03]} {[%emt 00:00:04]} 18. Qxc3 {[%clk 00:07:58]}
{[%emt 00:01:17]} Bxc3 {[%clk 00:10:06]} {[%emt 00:00:02]} 19. Rxb8 {[%clk
00:07:50]} {[%emt 00:00:13]} Nxb8 {[%clk 00:10:10]} {[%emt 00:00:02]} 20. Ne4
{[%clk 00:07:54]} {[%emt 00:00:01]} Bg7 {[%emt 00:00:46]} 0-1

[Event "MČR v rapid šachu družstev 2019"]
[Site "Teplice, Czech Republic"]
[Date "2019.09.15"]
[Round "5.18"]
[White "Horak, Jiri"]
[Black "Kopta, Pavel"]
[Result "1-0"]
[TimeControl "15 min. + 5s"]
[WhiteElo "2151"]
[BlackElo "2200"]

1. e4 {[%clk 00:15:06]} {[%emt 00:00:02]} c5 {[%clk 00:15:09]} {[%emt
00:00:01]} 2. c3 {[%clk 00:15:08]} {[%emt 00:00:04]} d6 {[%clk 00:15:01]}
{[%emt 00:00:13]} 3. d4 {[%clk 00:15:11]} {[%emt 00:00:01]} Nf6 {[%clk
00:15:05]} {[%emt 00:00:02]} 4. Bd3 {[%clk 00:15:07]} {[%emt 00:00:08]} Nbd7
{[%clk 00:14:43]} {[%emt 00:00:26]} 5. Nf3 {[%clk 00:15:10]} {[%emt 00:00:03]}
e5 {[%clk 00:14:46]} {[%emt 00:00:03]} 6. O-O {[%clk 00:15:04]} {[%emt
00:00:12]} Be7 {[%clk 00:14:49]} {[%emt 00:00:01]} 7. Nbd2 {[%clk 00:14:34]}
{[%emt 00:00:35]} O-O {[%clk 00:14:41]} {[%emt 00:00:13]} 8. b3 {[%clk
00:14:19]} {[%emt 00:00:20]} Qc7 {[%clk 00:14:32]} {[%emt 00:00:14]} 9. Bb2
{[%clk 00:14:20]} {[%emt 00:00:04]} Re8 {[%clk 00:13:46]} {[%emt 00:00:51]} 10.
Re1 {[%clk 00:14:14]} {[%emt 00:00:11]} Nf8 {[%clk 00:13:34]} {[%emt 00:00:17]}
11. Rc1 {[%clk 00:13:44]} {[%emt 00:00:33]} Ng6 {[%clk 00:13:34]} {[%emt
00:00:06]} 12. g3 {[%clk 00:12:43]} {[%emt 00:01:06]} h6 {[%clk 00:13:03]}
{[%emt 00:00:38]} 13. Nf1 {[%clk 00:11:59]} {[%emt 00:00:48]} Bh3 {[%clk
00:12:01]} {[%emt 00:01:06]} 14. Ne3 {[%clk 00:11:41]} {[%emt 00:00:24]} Bf8
{[%emt 00:02:24]} 15. dxe5 {[%emt 00:00:18]} dxe5 {[%clk 00:11:26]} 16. c4
{[%clk 00:09:35]} {[%emt 00:00:17]} Rad8 {[%clk 00:10:49]} {[%emt 00:00:42]} 17.
Nd5 {[%clk 00:09:30]} {[%emt 00:00:11]} Nxd5 {[%clk 00:10:25]} {[%emt
00:00:29]} 18. cxd5 {[%clk 00:09:11]} {[%emt 00:00:23]} Qd7 {[%clk 00:09:02]}
{[%emt 00:01:30]} 19. Nd2 {[%clk 00:08:41]} {[%emt 00:00:34]} f5 {[%clk
00:07:33]} {[%emt 00:01:33]} 20. Qh5 {[%clk 00:06:33]} {[%emt 00:02:13]} fxe4
{[%clk 00:06:16]} {[%emt 00:01:22]} 21. Nxe4 {[%clk 00:04:14]} {[%emt
00:02:24]} Nh8 {[%clk 00:03:53]} {[%emt 00:02:29]} 22. Nxc5 {[%clk 00:02:16]}
{[%emt 00:02:02]} Bxc5 {[%clk 00:02:54]} {[%emt 00:01:05]} 23. Rxc5 {[%clk
00:02:07]} {[%emt 00:00:13]} Bg4 {[%clk 00:02:53]} {[%emt 00:00:07]} 24. Qh4
{[%clk 00:02:08]} {[%emt 00:00:04]} e4 {[%clk 00:00:45]} {[%emt 00:02:13]} 25.
Rxe4 {[%clk 00:01:55]} {[%emt 00:00:18]} Bf3 {[%clk 00:00:43]} {[%emt
00:00:07]} 26. Re5 {[%clk 00:00:45]} {[%emt 00:01:15]} Qd6 {[%clk 00:00:31]}
{[%emt 00:00:17]} 27. Qf4 {[%clk 00:00:33]} {[%emt 00:00:16]} Qxc5 {[%clk
00:00:27]} {[%emt 00:00:09]} 28. Qxf3 {[%clk 00:00:34]} {[%emt 00:00:04]} Rxe5
{[%clk 00:00:22]} {[%emt 00:00:11]} 29. Bxe5 {[%clk 00:00:36]} {[%emt
00:00:03]} Nf7 {[%clk 00:00:24]} {[%emt 00:00:03]} 30. Bf4 {[%clk 00:00:10]}
{[%emt 00:00:31]} Qxd5 {[%clk 00:00:27]} {[%emt 00:00:02]} 31. Qxd5 {[%clk
00:00:14]} {[%emt 00:00:01]} Rxd5 {[%clk 00:00:31]} 32. Bc4 {[%clk 00:00:17]}
{[%emt 00:00:03]} Rd7 {[%clk 00:00:31]} {[%emt 00:00:04]} 33. a4 {[%clk
00:00:17]} {[%emt 00:00:05]} Kf8 {[%clk 00:00:34]} {[%emt 00:00:03]} 34. h4
{[%clk 00:00:19]} {[%emt 00:00:03]} Ke7 {[%clk 00:00:33]} {[%emt 00:00:06]} 35.
Kg2 {[%clk 00:00:17]} {[%emt 00:00:08]} Nd6 {[%clk 00:00:35]} {[%emt 00:00:02]}
36. Bd3 {[%clk 00:00:18]} {[%emt 00:00:04]} Kf6 {[%clk 00:00:35]} {[%emt
00:00:05]} 37. Be3 {[%clk 00:00:20]} {[%emt 00:00:04]} b6 {[%clk 00:00:38]}
{[%emt 00:00:02]} 38. g4 {[%clk 00:00:18]} {[%emt 00:00:06]} Nb7 {[%clk
00:00:33]} {[%emt 00:00:10]} 39. Bb5 {[%clk 00:00:16]} {[%emt 00:00:07]} Rd5
{[%clk 00:00:29]} {[%emt 00:00:08]} 40. Bc6 {[%clk 00:00:19]} {[%emt 00:00:03]}
Rd3 {[%clk 00:00:23]} {[%emt 00:00:11]} 41. Bxb7 {[%clk 00:00:21]} {[%emt
00:00:02]} Rxb3 {[%clk 00:00:27]} {[%emt 00:00:01]} 42. Bc6 {[%clk 00:00:25]}
{[%emt 00:00:02]} Ke5 {[%clk 00:00:29]} {[%emt 00:00:02]} 43. Kf3 {[%clk
00:00:27]} {[%emt 00:00:04]} g5 {[%clk 00:00:33]} {[%emt 00:00:02]} 44. hxg5
{[%clk 00:00:30]} hxg5 {[%clk 00:00:37]} 45. Ke2 {[%clk 00:00:33]} {[%emt
00:00:02]} Rb2+ {[%clk 00:00:37]} {[%emt 00:00:05]} 46. Kd3 {[%clk 00:00:36]}
{[%emt 00:00:02]} Rb4 {[%clk 00:00:38]} {[%emt 00:00:04]} 47. Bxg5 {[%clk
00:00:35]} {[%emt 00:00:05]} Rxg4 {[%clk 00:00:42]} {[%emt 00:00:02]} 48. Be3
{[%clk 00:00:37]} {[%emt 00:00:03]} Rh4 {[%clk 00:00:44]} {[%emt 00:00:03]} 49.
f4+ {[%clk 00:00:40]} {[%emt 00:00:02]} Kd6 {[%clk 00:00:47]} {[%emt 00:00:02]}
50. Bb5 {[%clk 00:00:43]} {[%emt 00:00:02]} Rh1 {[%clk 00:00:49]} {[%emt
00:00:03]} 51. Ke4 {[%clk 00:00:46]} {[%emt 00:00:01]} Re1 {[%clk 00:00:50]}
{[%emt 00:00:05]} 52. f5 {[%clk 00:00:50]} {[%emt 00:00:02]} Ke7 {[%clk
00:00:52]} {[%emt 00:00:03]} 53. Kf4 {[%clk 00:00:52]} {[%emt 00:00:02]} Rd1
{[%clk 00:00:53]} {[%emt 00:00:04]} 54. Ke5 {[%clk 00:00:51]} {[%emt 00:00:06]}
Re1 {[%clk 00:00:56]} {[%emt 00:00:03]} 55. Ke4 {[%clk 00:00:55]} {[%emt
00:00:01]} Kf6 {[%clk 00:00:58]} {[%emt 00:00:03]} 56. Bd7 {[%clk 00:00:52]}
{[%emt 00:00:07]} Re2 {[%clk 00:00:57]} {[%emt 00:00:06]} 57. Kd3 {[%clk
00:00:53]} {[%emt 00:00:04]} Ra2 {[%clk 00:00:57]} {[%emt 00:00:04]} 58. Bd4+
{[%clk 00:00:56]} {[%emt 00:00:03]} Ke7 {[%clk 00:01:02]} {[%emt 00:00:01]} 59.
Bb5 {[%clk 00:00:59]} {[%emt 00:00:01]} a6 {[%clk 00:00:55]} {[%emt 00:00:11]}
60. f6+ {[%clk 00:01:02]} {[%emt 00:00:03]} Kf8 {[%clk 00:00:54]} {[%emt
00:00:07]} 61. Bxa6 {[%clk 00:01:02]} {[%emt 00:00:04]} Rxa4 {[%clk 00:00:58]}
{[%emt 00:00:02]} 62. Bc4 {[%clk 00:01:04]} {[%emt 00:00:02]} Rb4 {[%clk
00:00:55]} {[%emt 00:00:07]} 63. Kc3 {[%clk 00:01:05]} {[%emt 00:00:04]} Rb1
{[%clk 00:00:59]} {[%emt 00:00:02]} 64. Be5 {[%clk 00:01:08]} {[%emt 00:00:02]}
Rd1 {[%clk 00:00:56]} {[%emt 00:00:07]} 65. Kb4 {[%clk 00:01:11]} {[%emt
00:00:03]} Rd2 {[%clk 00:00:55]} {[%emt 00:00:06]} 66. Kb5 {[%clk 00:01:13]}
{[%emt 00:00:03]} Rf2 {[%clk 00:00:08]} {[%emt 00:00:53]} 67. Kxb6 {[%clk
00:01:09]} {[%emt 00:00:08]} Rf5 {[%clk 00:00:12]} {[%emt 00:00:01]} 68. Bc3
{[%clk 00:01:10]} {[%emt 00:00:04]} Rf3 {[%clk 00:00:16]} {[%emt 00:00:02]} 69.
Bb4+ {[%clk 00:01:11]} {[%emt 00:00:02]} Ke8 {[%clk 00:00:20]} {[%emt
00:00:02]} 70. Be7 {[%clk 00:00:46]} {[%emt 00:00:30]} Re3 {[%clk 00:00:24]} 71.
Bc5 {[%clk 00:00:42]} {[%emt 00:00:09]} Rf3 {[%clk 00:00:28]} {[%emt 00:00:01]}
72. Bd4 {[%clk 00:00:46]} Rf4 {[%clk 00:00:32]} {[%emt 00:00:01]} 73. Kc5
{[%clk 00:00:49]} {[%emt 00:00:02]} Kd7 {[%clk 00:00:31]} {[%emt 00:00:06]} 74.
Be5 {[%clk 00:00:49]} {[%emt 00:00:04]} Rf2 {[%clk 00:00:28]} {[%emt 00:00:09]}
75. Kd5 {[%clk 00:00:45]} {[%emt 00:00:08]} Rf5 {[%clk 00:00:28]} {[%emt
00:00:06]} 76. Bb5+ {[%clk 00:00:46]} {[%emt 00:00:03]} Kd8 {[%clk 00:00:28]}
{[%emt 00:00:05]} 77. Ke6 {[%clk 00:00:50]} {[%emt 00:00:01]} Rf2 {[%clk
00:00:20]} {[%emt 00:00:14]} 78. f7 {[%clk 00:00:53]} {[%emt 00:00:02]} Rf3
{[%clk 00:00:16]} {[%emt 00:00:09]} 79. Bf6+ {[%clk 00:00:56]} {[%emt
00:00:02]} Ke8 {[%emt 00:00:09]} 1-0

[Event "MČR v rapid šachu družstev 2019"]
[Site "Teplice, Czech Republic"]
[Date "2019.09.15"]
[Round "5.19"]
[White "Chmel, Kristian"]
[Black "Nudcenko, Karel"]
[Result "0-1"]
[TimeControl "15 min. + 5s"]
[WhiteElo "2129"]
[BlackElo "2110"]

1. e4 {[%clk 00:15:08]} {[%emt 00:00:02]} e6 {[%clk 00:15:09]} {[%emt
00:00:02]} 2. d4 {[%clk 00:15:11]} {[%emt 00:00:01]} d5 {[%clk 00:15:13]}
{[%emt 00:00:01]} 3. Nd2 {[%clk 00:15:15]} {[%emt 00:00:02]} c5 {[%clk
00:15:16]} {[%emt 00:00:02]} 4. exd5 {[%clk 00:15:15]} {[%emt 00:00:05]} exd5
{[%clk 00:15:18]} {[%emt 00:00:02]} 5. Ngf3 {[%clk 00:15:18]} {[%emt 00:00:01]}
Nf6 {[%clk 00:15:15]} {[%emt 00:00:09]} 6. Bb5+ {[%clk 00:15:18]} {[%emt
00:00:05]} Bd7 {[%clk 00:15:12]} {[%emt 00:00:09]} 7. Bxd7+ {[%clk 00:15:17]}
{[%emt 00:00:05]} Nbxd7 {[%clk 00:15:15]} {[%emt 00:00:02]} 8. O-O {[%clk
00:15:19]} {[%emt 00:00:03]} Be7 {[%clk 00:15:12]} {[%emt 00:00:09]} 9. dxc5
{[%clk 00:15:05]} {[%emt 00:00:19]} Nxc5 {[%clk 00:15:11]} {[%emt 00:00:06]} 10.
Nd4 {[%clk 00:14:40]} {[%emt 00:00:29]} O-O {[%clk 00:14:48]} {[%emt 00:00:28]}
11. Nf5 {[%clk 00:14:34]} {[%emt 00:00:11]} Re8 {[%clk 00:14:27]} {[%emt
00:00:27]} 12. Nxe7+ {[%clk 00:12:54]} {[%emt 00:01:45]} Qxe7 {[%clk 00:14:29]}
{[%emt 00:00:02]} 13. Nb3 {[%clk 00:11:54]} {[%emt 00:01:05]} Nxb3 {[%clk
00:13:51]} {[%emt 00:00:43]} 14. axb3 {[%clk 00:11:56]} {[%emt 00:00:03]} h6
{[%clk 00:13:44]} {[%emt 00:00:12]} 15. Be3 {[%clk 00:11:37]} {[%emt 00:00:23]}
a6 {[%clk 00:13:36]} {[%emt 00:00:14]} 16. Bd4 {[%clk 00:11:12]} {[%emt
00:00:30]} Rac8 {[%clk 00:11:17]} {[%emt 00:02:25]} 17. c3 {[%clk 00:11:03]}
{[%emt 00:00:13]} Ne4 {[%clk 00:10:56]} {[%emt 00:00:25]} 18. Re1 {[%clk
00:09:26]} {[%emt 00:01:42]} Qg5 {[%clk 00:10:31]} {[%emt 00:00:31]} 19. Be3
{[%clk 00:06:23]} {[%emt 00:03:08]} Qf5 {[%clk 00:10:01]} {[%emt 00:00:36]} 20.
Ra5 {[%clk 00:05:55]} {[%emt 00:00:32]} Nf6 {[%clk 00:09:18]} {[%emt 00:00:48]}
21. h3 {[%clk 00:04:54]} {[%emt 00:01:06]} Re6 {[%clk 00:08:01]} {[%emt
00:01:22]} 22. b4 {[%clk 00:03:40]} {[%emt 00:01:20]} Rd8 {[%clk 00:07:32]}
{[%emt 00:00:33]} 23. b5 {[%clk 00:03:10]} {[%emt 00:00:35]} Ne4 {[%clk
00:06:58]} {[%emt 00:00:39]} 24. bxa6 {[%clk 00:03:04]} {[%emt 00:00:12]} bxa6
{[%clk 00:06:53]} {[%emt 00:00:09]} 25. c4 {[%clk 00:01:45]} {[%emt 00:01:24]}
Red6 {[%clk 00:05:50]} {[%emt 00:01:08]} 26. Qd3 {[%clk 00:00:32]} {[%emt
00:01:17]} dxc4 {[%clk 00:05:14]} {[%emt 00:00:43]} 27. Qxd6 {[%clk 00:00:16]}
{[%emt 00:00:20]} Nxd6 {[%clk 00:05:16]} {[%emt 00:00:03]} 28. Rxf5 {[%clk
00:00:19]} {[%emt 00:00:02]} Nxf5 {[%clk 00:05:19]} {[%emt 00:00:02]} 29. Bc5
{[%clk 00:00:08]} {[%emt 00:00:17]} Rd2 {[%clk 00:04:24]} {[%emt 00:01:00]} 30.
Ba3 {[%clk 00:00:08]} {[%emt 00:00:04]} Nd4 {[%clk 00:04:14]} {[%emt 00:00:14]}
31. Re4 {[%clk 00:00:11]} {[%emt 00:00:03]} c3 {[%clk 00:04:04]} {[%emt
00:00:15]} 32. bxc3 {[%clk 00:00:08]} {[%emt 00:00:08]} Ne2+ {[%clk 00:04:08]}
{[%emt 00:00:01]} 33. Kh2 {[%clk 00:00:10]} {[%emt 00:00:03]} Nxc3 {[%clk
00:04:05]} {[%emt 00:00:07]} 34. Re8+ {[%clk 00:00:13]} {[%emt 00:00:03]} Kh7
{[%clk 00:04:07]} {[%emt 00:00:04]} 35. Ra8 {[%clk 00:00:11]} {[%emt 00:00:06]}
Nb5 {[%clk 00:04:09]} {[%emt 00:00:03]} 36. Bc5 {[%clk 00:00:10]} {[%emt
00:00:06]} Ra2 {[%clk 00:04:06]} {[%emt 00:00:08]} 37. Bb6 {[%clk 00:00:14]}
{[%emt 00:00:01]} Nc3 {[%clk 00:04:05]} {[%emt 00:00:07]} 38. Ra7 {[%clk
00:00:16]} {[%emt 00:00:03]} Kg6 {[%clk 00:04:07]} {[%emt 00:00:03]} 39. f3
{[%clk 00:00:08]} {[%emt 00:00:13]} Nd5 {[%clk 00:04:04]} {[%emt 00:00:07]} 40.
Bd4 {[%clk 00:00:10]} {[%emt 00:00:03]} Nf4 {[%clk 00:04:04]} {[%emt 00:00:05]}
41. Kg3 {[%clk 00:00:08]} {[%emt 00:00:07]} Ne2+ {[%clk 00:04:04]} {[%emt
00:00:04]} 42. Kf2 {[%clk 00:00:11]} {[%emt 00:00:04]} Nxd4+ {[%clk 00:04:07]}
{[%emt 00:00:01]} 43. Ke3 {[%clk 00:00:14]} {[%emt 00:00:02]} Ne6 {[%clk
00:04:02]} {[%emt 00:00:10]} 44. g4 {[%clk 00:00:16]} {[%emt 00:00:02]} Ra3+
{[%clk 00:04:02]} {[%emt 00:00:06]} 45. Ke4 {[%clk 00:00:16]} {[%emt 00:00:05]}
Ng5+ {[%clk 00:04:05]} {[%emt 00:00:01]} 46. Kd5 {[%clk 00:00:13]} {[%emt
00:00:09]} Nxf3 {[%clk 00:04:06]} {[%emt 00:00:04]} 47. Rb7 {[%clk 00:00:11]}
{[%emt 00:00:07]} Ng5 {[%clk 00:03:52]} {[%emt 00:00:19]} 48. h4 {[%clk
00:00:12]} {[%emt 00:00:04]} Ne6 {[%clk 00:03:42]} {[%emt 00:00:15]} 49. Ke5
{[%clk 00:00:14]} {[%emt 00:00:03]} Ra5+ {[%clk 00:03:41]} {[%emt 00:00:07]} 50.
Ke4 {[%clk 00:00:14]} {[%emt 00:00:05]} Ra4+ {[%clk 00:03:41]} {[%emt
00:00:05]} 51. Ke5 {[%clk 00:00:15]} {[%emt 00:00:03]} Ra5+ {[%clk 00:03:33]}
{[%emt 00:00:13]} 52. Kd6 {[%clk 00:00:14]} {[%emt 00:00:06]} Kf6 {[%clk
00:03:23]} {[%emt 00:00:15]} 53. Kd7 {[%clk 00:00:12]} {[%emt 00:00:08]} Rd5+
{[%clk 00:03:17]} {[%emt 00:00:10]} 54. Kc6 {[%clk 00:00:13]} {[%emt 00:00:04]}
Rd4 {[%clk 00:03:18]} {[%emt 00:00:04]} 55. Rb8 {[%clk 00:00:06]} {[%emt
00:00:12]} Rxg4 {[%clk 00:03:16]} {[%emt 00:00:07]} 56. Ra8 {[%clk 00:00:10]}
{[%emt 00:00:02]} Rxh4 {[%clk 00:03:15]} {[%emt 00:00:05]} 57. Rxa6 {[%clk
00:00:13]} {[%emt 00:00:02]} Rd4 {[%clk 00:03:17]} {[%emt 00:00:03]} 58. Ra1
{[%clk 00:00:17]} {[%emt 00:00:01]} g5 {[%clk 00:03:20]} {[%emt 00:00:02]} 0-1